Cogmind - Beta 12 @@@ ROGUE MODE // 2023.03.12 @ 08:56:05 // Winter2019/RPGLIKE Player: Delirus Result: Destroyed by Y-64 Sentinel with KE Penetrator Performance ------------- Evolutions (5) 2500 Regions Visited (21) 4200 Robots Destroyed (581) 2905 Value Destroyed (24860) 24860 Prototype IDs (25) 500 Alien Tech Used (0) 0 Bonus (16894) 16894 TOTAL SCORE: 51859 Bonus ------- Triggered High Security 1000 High Alert Combat Kills 13056 Follower Combat Kills 4950 Entered Garrisons 600 Met Data Miner 300 Built Enhanced Grunts 300 Met R17 at Cetus 500 Friendly Fire -3812 Cogmind --------- Core Integrity 0/1150 Matter 500/500 Energy 546/550 System Corruption 18% Temperature Cool (0) Movement Rolling (130) Ox2 Location -5/Factory Parts ------- > --- POWER (2) -------- Antimatter Reactor Reinforced Antimatter Reactor (fused) > --- PROPULSION (4) --- Centrium Heavy Treads Armored Huge Wheel (fused) > --- UTILITY (7) ------ Advanced Signal Interpreter Advanced Terrain Scanner Improved Weapon Cycler (fused) Medium Regenerative Plating Improved Thermal Shield Improved Hardlight Generator Long-range Tractor Beam > --- WEAPON (4) ------- Hypervelocity Gauss Rifle Heavy Rocket Launcher Long-range Missile Launcher > --- INVENTORY (6) ---- Encrypted Comm Array Recoil Nullifier Improved Focal Shield Gauss Rifle Gauss Rifle Peak State ------------ > --- POWER ------------ Antimatter Reactor Reinforced Antimatter Reactor > --- PROPULSION ------- Centrium Heavy Treads Armored Huge Wheel > --- UTILITY ---------- Advanced Signal Interpreter Recoil Stabilizer Improved Kinecellerator Improved Weapon Cycler Advanced Powered Armor Medium Regenerative Plating Improved Thermal Shield > --- WEAPON ----------- KE Penetrator KE Penetrator Mass Driver Heavy Rocket Launcher > --- INVENTORY -------- Advanced Terrain Scanner Encrypted Comm Array Experimental Thermal Shield Improved Hardlight Generator Dynamic Insulation System Long-range Tractor Beam [Rating: 106] Favorites ----------- Power Improved Deuterium Engine Engine Improved Deuterium Engine Power Core Neutrino Core Reactor Reinforced Antimatter Reactor Propulsion Armored Huge Wheel Treads Improved Medium Treads Leg Aluminum Leg Wheel Armored Huge Wheel Hover Unit Hover Unit Utility Medium Reactive Plating Device Recoil Stabilizer Processor Advanced Signal Interpreter Hackware Makeshift Hacking Suite Protection Medium Reactive Plating Weapon Gauss Cannon Energy Cannon Constructs Ballistic Gun Light Assault Rifle Ballistic Cannon Gauss Cannon Launcher Heavy Rocket Launcher Build | -11 -10 -10 -9 -9 -9 -9 -7 -7 -7 -7 -6 -6 -6 -6 -6 -6 -6 -6 -5 -5 -5 ------- Run | Jun Mat Min Mat Sto Gar Rec Fac Low Low Dat Pro Fac Gar Fac Gar Ext Cet Arc Fac Was Fac Slots Evolved 13 | . 4 . 3 1 1 . 1 . . . 1 . 1 . . . . . 1 . . Power 1 | . . . . . 1 . . . . . . . . . . . . . . . . Propulsion 3 | . 1 . 1 . . . . . . . 1 . . . . . . . . . . Utility 6 | . 2 . 2 . . . 1 . . . . . 1 . . . . . . . . Weapon 3 | . 1 . . 1 . . . . . . . . . . . . . . 1 . . Parts Attached 207 | 2 19 2 24 5 7 7 16 13 24 . 2 4 9 13 4 5 4 2 14 1 30 Power 19 | . . . 6 1 . . 2 . . . 1 . 1 1 . 2 . 1 2 1 1 Engine 11 | . . . 4 1 . . 2 . . . 1 . . 1 . 1 . 1 . . . Core 4 | . . . 2 . . . . . . . . . . . . . . . 2 . . Reactor 4 | . . . . . . . . . . . . . 1 . . 1 . . . 1 1 Propulsion 19 | 1 4 1 4 . . 2 3 1 . . 1 . . 1 . . 1 . . . . Treads 6 | . . . 1 . . 1 1 . . . 1 . . 1 . . 1 . . . . Leg . | . . . . . . . . . . . . . . . . . . . . . . Wheel 9 | 1 2 . 2 . . 1 2 1 . . . . . . . . . . . . . Hover 4 | . 2 1 1 . . . . . . . . . . . . . . . . . . Flight . | . . . . . . . . . . . . . . . . . . . . . . Utility 122 | . 13 1 7 2 3 2 5 11 21 . . 4 7 10 4 2 3 1 9 . 17 Device 82 | . 3 1 2 2 3 2 3 9 14 . . 2 6 9 1 1 2 . 9 . 13 Storage . | . . . . . . . . . . . . . . . . . . . . . . Processor 5 | . 1 . 1 . . . 1 . 1 . . 1 . . . . . . . . . Hackware 1 | . . . . . . . . . 1 . . . . . . . . . . . . Protection 34 | . 9 . 4 . . . 1 2 5 . . 1 1 1 3 1 1 1 . . 4 Artifact . | . . . . . . . . . . . . . . . . . . . . . . Weapon 47 | 1 2 . 7 2 4 3 6 1 3 . . . 1 1 . 1 . . 3 . 12 Energy Gun . | . . . . . . . . . . . . . . . . . . . . . . Energy Cannon . | . . . . . . . . . . . . . . . . . . . . . . Ballistic Gun 19 | 1 1 . 3 2 1 . 2 . . . . . . . . . . . 2 . 7 Ballistic Cannon 12 | . 1 . 1 . 1 2 3 . 2 . . . . 1 . . . . 1 . . Launcher 16 | . . . 3 . 2 1 1 1 1 . . . 1 . . 1 . . . . 5 Special Weapon . | . . . . . . . . . . . . . . . . . . . . . . Impact Weapon . | . . . . . . . . . . . . . . . . . . . . . . Slashing Weapon . | . . . . . . . . . . . . . . . . . . . . . . Piercing Weapon . | . . . . . . . . . . . . . . . . . . . . . . Special Melee Weapon . | . . . . . . . . . . . . . . . . . . . . . . Unidentified Prototypes 6 | . . . 1 . . . . 1 . . . . 1 . . . 3 . . . . Corrupted Parts 2 | . . . . . . . . . . . . . . . . . 2 . . . . System Corruption 8 | . . . . . . . . . . . . . . . . . 8 . . . . Parts Lost 2 | . . . . . . . . . . . . . . . . 1 . 1 . . . Power . | . . . . . . . . . . . . . . . . . . . . . . Propulsion . | . . . . . . . . . . . . . . . . . . . . . . Utility 2 | . . . . . . . . . . . . . . . . 1 . 1 . . . Weapon . | . . . . . . . . . . . . . . . . . . . . . . Highest Loss Streak 1 | . . . . . . . . . . . . . . . . 1 . 1 . . . To Critical Strikes . | . . . . . . . . . . . . . . . . . . . . . . Average Slot Usage (%) 88 | . 96 100 95 90 85 77 90 84 83 92 92 93 92 89 80 80 78 74 86 88 87 Engine 9 | . 13 12 8 8 7 7 13 14 14 14 13 13 7 6 6 6 6 4 2 . . Reactor 2 | . . . . . . . . . . . . . 4 6 6 6 6 6 5 9 10 Treads 7 | . . . 7 8 7 7 7 7 7 7 11 13 12 12 12 12 8 6 5 5 5 Wheel 8 | . 14 . 14 17 15 15 14 8 7 7 6 6 6 6 6 6 6 6 5 5 5 Hover 1 | . 6 25 5 . . . . . . . . . . . . . . . . . . Device 16 | . . 2 9 8 7 11 20 19 20 21 20 13 20 23 18 18 24 21 28 29 28 Processor 9 | . 9 12 11 17 15 15 8 7 7 14 13 13 12 9 6 6 6 6 5 5 5 Protection 9 | . 23 22 15 8 7 3 4 5 7 7 6 12 6 7 11 11 7 11 6 5 5 Ballistic Gun 4 | . 13 12 10 10 15 1 3 1 . . . . . . . . . . 8 11 12 Ballistic Cannon 10 | . 13 12 10 8 7 13 14 14 13 14 13 13 12 10 6 6 6 6 5 5 3 Launcher 4 | . . . . . . . 3 5 5 7 6 6 5 6 6 6 6 6 5 5 4 Naked Turns . | . . . . . . . . . . . . . . . . . . . . . . Heaviest Build 103 | 7 15 15 34 37 38 38 63 64 77 64 64 65 86 103 101 101 95 95 89 91 99 Greatest Support 90 | 16 31 28 34 34 34 34 34 38 38 38 62 62 62 38 38 38 54 38 38 38 90 Greatest Overweight (x) 2 | . . . 1 1 1 1 1 1 2 1 1 1 2 2 2 2 2 2 2 2 2 Average Overweight (x) 1 | . . . . . . . . 1 1 1 1 . 1 2 2 2 1 1 2 2 1 Largest Inventory Capacity 6 | . 2 2 3 3 3 3 3 5 5 5 5 6 6 6 6 6 6 6 6 6 6 Average Capacity 4 | . 1 2 2 3 3 3 3 4 5 5 5 5 6 6 6 6 6 6 6 6 6 Most Carried 6 | . 2 2 3 3 3 3 3 5 5 5 5 6 6 6 6 6 5 6 6 6 6 Average Carried 4 | . 1 2 2 3 3 2 2 3 4 5 4 5 5 5 5 5 2 4 5 5 5 Final Capacity 6 | . 2 2 3 3 3 3 3 5 5 5 5 6 6 6 6 6 6 6 6 6 6 Final Carried 6 | . 2 2 3 3 3 3 3 5 5 5 5 6 5 6 6 6 2 6 6 6 5 Scrap Engine Consumption 19 | . . . . . . 6 7 2 4 . . . . . . . . . . . . Constructs Created 4 | . . . . . . 1 1 . 2 . . . . . . . . . . . . Class Distribution -------------------- 54% | Skirmisher 11% | Gunner 10% | Mutant 8% | Commander-Skirmisher 6% | Scavenger-Scout 3% | Scavenger-Gunner Dominant Class ---------------- Mutant | -10/Materials Scavenger-Scout | -10/Mines Skirmisher | -9/Materials Skirmisher | -9/Storage Gunner | -9/Garrison Skirmisher | -9/Recycling Skirmisher | -7/Factory Skirmisher | -7/Lower Caves Skirmisher | -7/Lower Caves Skirmisher | -7/Data Miner Skirmisher | -6/Proximity Caves Derelict-Gunner | -6/Factory Skirmisher | -6/Garrison Skirmisher | -6/Factory Skirmisher | -6/Garrison Commander-Skirmisher | -6/Extension Commander-Skirmisher | -6/Cetus Commander-Skirmisher | -6/Archives Scavenger-Gunner | -5/Factory Scavenger-Gunner | -5/Waste Gunner | -5/Factory Resources | -11 -10 -10 -9 -9 -9 -9 -7 -7 -7 -7 -6 -6 -6 -6 -6 -6 -6 -6 -5 -5 -5 ----------- Run | Jun Mat Min Mat Sto Gar Rec Fac Low Low Dat Pro Fac Gar Fac Gar Ext Cet Arc Fac Was Fac Matter Collected 16962 | 200 1992 125 900 494 601 91 569 1268 1546 . 479 . 1211 1108 1200 855 820 112 274 411 2706 Remotely 3376 | . 146 . . . . . . . . . . . . 447 . 327 820 90 . . 1546 Salvage Created 15173 | . 1630 74 1373 625 690 68 758 624 448 . 287 . 815 1056 702 2351 275 96 268 443 2590 Parts 911 | . 143 2 98 37 51 7 46 26 24 . 14 . 34 87 42 127 24 2 12 5 130 Haulers Intercepted 11 | . 2 . 5 2 . . . . . . . . . . . 1 . . . . 1 Recyclers Shooed 3 | . 3 . . . . . . . . . . . . . . . . . . . . Parts Field Recycled . | . . . . . . . . . . . . . . . . . . . . . . Retrieved Matter . | . . . . . . . . . . . . . . . . . . . . . . Parts Self-Destructed 67 | . . . . . . . . 18 32 . 17 . . . . . . . . . . Prevented 1 | . . . . . . . . . . . 1 . . . . . . . . . . Kills | -11 -10 -10 -9 -9 -9 -9 -7 -7 -7 -7 -6 -6 -6 -6 -6 -6 -6 -6 -5 -5 -5 ------- Run | Jun Mat Min Mat Sto Gar Rec Fac Low Low Dat Pro Fac Gar Fac Gar Ext Cet Arc Fac Was Fac Combat Hostiles Destroyed 469 | . 36 6 39 13 22 3 18 29 13 . 10 . 24 36 32 77 18 1 5 2 85 Guns 56 | . 6 2 9 5 10 1 3 . . . . . . . . . . . 2 1 17 Cannons 207 | . 28 4 27 8 3 2 10 10 4 . 4 . 18 30 17 16 6 1 3 1 15 AOE 206 | . 2 . 3 . 9 . 5 19 9 . 6 . 6 6 15 61 12 . . . 53 Classes Destroyed 28 | . 10 1 1 . 1 . 1 3 2 . 1 . 1 3 . 3 . . . 1 . Worker 38 | . 20 . 1 . . . 1 . . . . . . 7 . 7 . . . . 2 Builder 19 | . 10 1 2 . . . 2 . . . . . . . . 4 . . . . . Tunneler 10 | . 2 . . . . . 1 . . . . . . 1 . 5 . . . . 1 Hauler 11 | . 2 . 5 2 . . . . . . . . . . . 1 . . . . 1 Recycler 16 | . 9 . . . . . 2 . . . . . . 2 . 3 . . . . . Minesweeper 1 | . . . . . . . . . 1 . . . . . . . . . . . . Mechanic 8 | . 1 . . . . . . . 1 . . . . . . 5 . . . . 1 Operator 7 | . 3 . 1 . . . 1 . . . . . . 1 . . . . 1 . . Watcher 14 | . 3 . 3 1 . . 1 . . . . . . 2 . . 1 . 1 . 2 Swarmer 101 | . 9 . 13 . 11 . 4 14 5 . 3 . 4 2 13 2 14 . 1 . 6 Cutter 3 | . . . . . . . . . . . . . . 3 . . . . . . . Saboteur 7 | . . . . . . . . . . . . . . . . 5 . . . . 2 Grunt 186 | . 27 . 18 7 9 . 7 7 3 . 5 . 9 10 9 34 . . 3 . 38 Brawler 14 | . . . . . . . . 3 1 . . . 2 2 . 1 . . . . 5 Duelist 26 | . . . . . . . . 2 1 . 1 . . . 1 10 . . . . 11 Protector 8 | . . . . . . . . . . . . . . . . 4 . . . . 4 Sentry 49 | . . . 8 6 1 3 3 2 1 . . . 4 5 2 5 . 1 . . 8 Demolisher 1 | . . . . . . . . . . . . . . . . 1 . . . . . Specialist 6 | . . . . . . . . . . . . . 2 . 2 2 . . . . . Hunter 19 | . . . . . . . 2 . 1 . . . 1 4 . 5 . . 1 . 5 Programmer 29 | . . . . . 3 . 2 . . . . . . 8 4 6 . . . . 6 Heavy 2 | . . . . . . . . . . . . . . 2 . . . . . . . Behemoth 7 | . . . . . . . . . . . 1 . 3 . 1 2 . . . . . Compactor 2 | . . . . . . . . . . . . . . . . . . . . 2 . Cetus Guard 4 | . . . . . . . . . . . . . . . . . 4 . . . . Enhanced Grunt 1 | . . . . . . . . . . . . . 1 . . . . . . . . Thief 1 | . . . . . . . . 1 . . . . . . . . . . . . . Assembled 6 | . . 6 . . . . . . . . . . . . . . . . . . . Thug 3 | . . . . . . . . . 2 . . . . 1 . . . . . . . Savage 1 | . . . . . . . . . 1 . . . . . . . . . . . . Fireman 2 | . . . . . . . . . . . . . . 2 . . . . . . . Mutant 1 | . . . . . . . . . 1 . . . . . . . . . . . . Best Kill Streak 40 | . 8 6 6 3 9 1 10 9 5 . 4 . 4 7 11 40 8 1 3 1 13 Combat Bots Only 33 | . 6 3 6 3 9 1 5 9 5 . 4 . 4 4 11 33 8 1 3 1 13 Max Kills in Single Turn 7 | . 3 1 3 2 3 1 7 3 5 . 2 . 3 4 4 7 6 1 1 1 5 Gunslinging . | . . . . . . . . . . . . . . . . . . . . . . Exploded 6 | . 2 . 3 . 3 . 2 3 3 . 2 . 3 2 4 5 6 . . . 5 Melee . | . . . . . . . . . . . . . . . . . . . . . . Uniques/NPCs Destroyed 1 | . . . . . . . . . . . . . . . . . 1 . . . . A7 (-6/Cetus) Combat | -11 -10 -10 -9 -9 -9 -9 -7 -7 -7 -7 -6 -6 -6 -6 -6 -6 -6 -6 -5 -5 -5 -------- Run | Jun Mat Min Mat Sto Gar Rec Fac Low Low Dat Pro Fac Gar Fac Gar Ext Cet Arc Fac Was Fac Damage Taken 11104 | . 1341 91 658 473 192 6 422 314 352 . 430 . 757 841 784 1201 641 38 66 . 2497 Core 7314 | . 851 34 403 309 113 2 300 212 253 . 282 . 520 546 479 700 438 27 43 . 1802 Absorbed by Shields 3081 | . . . 148 12 100 4 126 . . . . . 286 547 475 718 341 18 36 . 270 Reduced by Siege Mode 16 | . . . . . . . . . . . . . . . . . . . . . 16 Redirected to Core 6290 | . 637 34 346 271 105 2 266 212 210 . 239 . 442 460 384 606 398 15 43 . 1620 Regen/Repaired (Parts) 286 | . 134 . . . . . . . 11 . . . . . . . 42 . 11 . 88 Core Remaining (%) 94 | 100 . 100 . . . 100 . . . . 89 . . . . . . 82 . . . Volleys Fired 1281 | . 291 21 104 50 48 4 37 47 29 . 19 . 101 112 101 99 43 6 21 20 128 Largest 4 | . 2 2 2 3 3 3 2 2 2 . 2 . 2 2 1 1 1 1 3 3 4 Hottest 123 | . 55 55 60 81 91 81 96 96 96 . 96 . 96 96 60 60 60 60 123 123 123 Shots Fired 2341 | . 572 42 208 114 133 11 72 75 52 . 35 . 191 180 102 101 42 6 54 58 293 Gun 807 | . 282 21 100 64 84 6 12 . . . . . . . . . . . 33 38 167 Cannon 1331 | . 290 21 100 50 43 5 59 61 47 . 32 . 181 176 84 57 27 6 21 20 51 Launcher 203 | . . . 8 . 6 . 1 14 5 . 3 . 10 4 18 44 15 . . . 75 Special . | . . . . . . . . . . . . . . . . . . . . . . Kinetic 2138 | . 572 42 200 114 127 11 71 61 47 . 32 . 181 176 84 57 27 6 54 58 218 Thermal . | . . . . . . . . . . . . . . . . . . . . . . Explosive 203 | . . . 8 . 6 . 1 14 5 . 3 . 10 4 18 44 15 . . . 75 Electromagnetic . | . . . . . . . . . . . . . . . . . . . . . . Robot Hit Streak 57 | . 15 14 11 16 13 21 27 14 16 . 24 . 22 19 18 27 14 4 22 17 57 Robot Miss Streak 7 | . 6 4 7 2 2 . 1 4 1 . 1 . 2 4 2 2 1 1 1 1 2 Penetration Max 2 | . . . . . . . 1 1 . . . . 1 1 1 1 . . . . 2 Secondary Targets . | . . . . . . . . . . . . . . . . . . . . . . Shots Hit Robots 1464 | . 358 18 126 77 36 8 48 35 39 . 29 . 112 132 50 69 27 5 39 51 205 Core Hits 1159 | . 129 11 67 23 30 4 33 55 24 . 19 . 56 76 39 276 55 1 12 7 242 Critical Kills 10 | . 1 . 1 1 1 . . . . . . . . . . . . . . . 6 Critical Parts Destroyed 26 | . 2 . 1 1 2 . . . . . . . . . . . . . 1 . 19 Critical Strikes 119 | . 8 . 5 5 4 1 6 1 6 . 2 . 14 15 9 5 3 2 4 1 28 Destroy 38 | . 3 . 2 2 3 1 . . . . . . . . . . . . 1 . 26 Blast 81 | . 5 . 3 3 1 . 6 1 6 . 2 . 14 15 9 5 3 2 3 1 2 Melee Attacks . | . . . . . . . . . . . . . . . . . . . . . . Impact . | . . . . . . . . . . . . . . . . . . . . . . Slashing . | . . . . . . . . . . . . . . . . . . . . . . Piercing . | . . . . . . . . . . . . . . . . . . . . . . Sneak Attacks . | . . . . . . . . . . . . . . . . . . . . . . Combat Hostiles . | . . . . . . . . . . . . . . . . . . . . . . Follow-up Attacks . | . . . . . . . . . . . . . . . . . . . . . . Damage Inflicted 74578 | . 5132 237 2351 1348 1257 152 2505 3160 2023 . 1433 . 4709 6573 4393 16119 3675 373 1481 1968 15689 Guns 8643 | . 1411 76 800 737 587 88 255 . . . . . . . . . . . 782 1159 2748 Cannons 29605 | . 3269 161 1285 611 250 64 1096 1131 967 . 889 . 3714 5204 2475 3232 1565 373 699 809 1811 Explosions 35979 | . 452 . 266 . 420 . 1154 2009 970 . 496 . 808 1369 1918 12887 2110 . . . 11120 Melee . | . . . . . . . . . . . . . . . . . . . . . . Ramming 351 | . . . . . . . . 20 86 . 48 . 187 . . . . . . . 10 Kinetic 38248 | . 4680 237 2085 1348 837 152 1351 1131 967 . 889 . 3714 5204 2475 3232 1565 373 1481 1968 4559 Thermal 1333 | . 452 . . . . . 689 . . . . . . . . . . . . . 192 Explosive 34492 | . . . 266 . 420 . 311 2009 970 . 496 . 808 1369 1918 12887 2110 . . . 10928 Electromagnetic 154 | . . . . . . . 154 . . . . . . . . . . . . . . Impact . | . . . . . . . . . . . . . . . . . . . . . . Slashing . | . . . . . . . . . . . . . . . . . . . . . . Piercing . | . . . . . . . . . . . . . . . . . . . . . . Highest Corruption 18 | . . . . . . . . . . . . . . 1 2 7 16 16 2 15 18 Average Corruption 7 | . . . . . . . . . . . . . . 1 1 2 12 16 2 10 16 Corruption Purged . | . . . . . . . . . . . . . . . . . . . . . . Corruption Blocked 2 | . . . . . . . . . . . . . . . . . . . . . 2 Effects 162 | . . . . . . . . . . . . . . 4 14 9 33 10 4 7 81 Message Errors 39 | . . . . . . . . . . . . . . 1 4 3 5 . 1 4 21 Matter Fused 39 | . . . . . . . . . . . . . . . 3 1 6 8 2 2 17 Heat Flow Errors 16 | . . . . . . . . . . . . . . 1 2 1 3 1 . . 8 Energy Discharges 20 | . . . . . . . . . . . . . . 1 2 . 8 . . . 9 Parts Rejected 3 | . . . . . . . . . . . . . . . . 1 . 1 . . 1 Parts Fused 3 | . . . . . . . . . . . . . . . . . 2 . . . 1 Data Loss (minor) 13 | . . . . . . . . . . . . . . . 1 1 5 . . 1 5 Data Loss (major) 6 | . . . . . . . . . . . . . . 1 . . . . 1 . 4 Misfires 9 | . . . . . . . . . . . . . . . 1 2 1 . . . 5 Alerts 3 | . . . . . . . . . . . . . . . 1 . 1 . . . 1 Misdirections 1 | . . . . . . . . . . . . . . . . . . . . . 1 Weapon Failures 10 | . . . . . . . . . . . . . . . . . 2 . . . 8 Overload Shots . | . . . . . . . . . . . . . . . . . . . . . . Overflow Damage 2252 | . 182 . 36 . . . 220 108 84 . 53 . 24 217 221 515 103 . 65 . 424 Projectiles 1100 | . 32 . 18 . . . 15 85 24 . 42 . 22 139 200 319 62 . 65 . 77 Explosions 1149 | . 150 . 18 . . . 205 23 60 . 8 . 2 78 21 196 41 . . . 347 Melee 3 | . . . . . . . . . . . 3 . . . . . . . . . . Knockbacks 155 | . 54 . 4 6 3 . 4 11 4 . 6 . 17 15 11 10 . 2 1 . 7 Impact . | . . . . . . . . . . . . . . . . . . . . . . Kinetic 141 | . 46 . 4 5 3 . 4 10 4 . 6 . 15 15 10 10 . 1 1 . 7 Secondary 14 | . 8 . . 1 . . . 1 . . . . 2 . 1 . . 1 . . . Self-Inflicted Damage 932 | . . . . . 9 . 84 . 60 . 56 . 106 155 158 17 . . . . 287 Shots 24 | . . . . . 1 . 3 . 2 . 1 . 3 2 4 2 . . . . 6 Rammed 102 | . . . . . . . 1 4 28 . 17 . 51 . . . . . . . 1 Targets Rammed 106 | . . . . . . . 1 5 30 . 18 . 51 . . . . . . . 1 Kicked . | . . . . . . . . . . . . . . . . . . . . . . Crushed 4 | . . . . . . . . 1 2 . 1 . . . . . . . . . . Highest Temperature 364 | . 364 5 183 3 . . 55 58 64 . 147 . 210 244 261 133 263 182 188 342 300 Average Temperature 52 | . 79 5 93 3 . . 17 18 23 . 55 . 48 44 29 34 39 101 57 132 57 Received Heat Transfer 3271 | . 534 40 207 306 27 . 167 72 122 . 168 . 198 134 161 227 31 12 16 . 849 Effects 5 | . 3 . . . . . . . . . . . . . . . . . . 2 . Shutdowns 1 | . . . . . . . . . . . . . . . . . . . . 1 . Energy Bleed 1 | . 1 . . . . . . . . . . . . . . . . . . . . Interference 3 | . 2 . . . . . . . . . . . . . . . . . . 1 . Siege Activations 2 | . . . . . . . . . . . . . . . . . . . . . 2 Total Turns 41 | . . . . . . . . . . . . . . . . . . . . . 41 Longest Duration 27 | . . . . . . . . . . . . . . . . . . . . . 27 Robots Corrupted 1 | . . . . . . . 1 . . . . . . . . . . . . . . Combat Hostiles . | . . . . . . . . . . . . . . . . . . . . . . Parts Fried 3 | . . . . . . . 1 . . . 1 . . . . 1 . . . . . Impact Corruptions 3 | . . . . . . . . 1 . . 2 . . . . . . . . . . Robots Melted . | . . . . . . . . . . . . . . . . . . . . . . Combat Hostiles . | . . . . . . . . . . . . . . . . . . . . . . Parts Melted 2 | . 1 . . . . . 1 . . . . . . . . . . . . . . Heat Transferred 950 | . 250 . . . . . 550 . . . . . . . . . . . . . 150 Parts Sabotaged 5 | . . . . . . . . . . . . . . . . 2 . . . . 3 Parts Stolen . | . . . . . . . . . . . . . . . . . . . . . . Parts Stripped . | . . . . . . . . . . . . . . . . . . . . . . Power Chain Reactions . | . . . . . . . . . . . . . . . . . . . . . . Missiles Intercepted . | . . . . . . . . . . . . . . . . . . . . . . Alert | -11 -10 -10 -9 -9 -9 -9 -7 -7 -7 -7 -6 -6 -6 -6 -6 -6 -6 -6 -5 -5 -5 ------- Run | Jun Mat Min Mat Sto Gar Rec Fac Low Low Dat Pro Fac Gar Fac Gar Ext Cet Arc Fac Was Fac Peak Influence 5158 | . 880 343 1059 1041 1658 785 723 . . . . 46 1414 1487 3098 5158 3632 1665 1102 409 4115 Initial 2888 | . . 343 57 417 579 745 191 . . . . . 9 742 1050 1626 2888 1452 582 385 286 Average 1021 | . 418 268 623 630 1139 674 354 . . . . 2 708 970 2148 2367 3366 1641 824 402 1425 Maximum Alert Level 5 | . 3 1 3 3 5 3 3 . . . . . 4 4 5 5 5 5 4 2 5 Low Security (%) 8 | 100 13 37 10 . . . 10 . . . . 100 16 . . . . . . . . Level 1 15 | . 39 62 10 . . . 67 . . . . . 22 . . . . . . 33 9 Level 2 17 | . 28 . 38 69 5 53 11 . . . . . 10 . . . . . 30 66 23 Level 3 25 | . 17 . 40 30 37 46 10 . . . . . 13 74 2 . . . 67 . 4 Level 4 13 | . . . . . 55 . . . . . . . 36 25 12 . . 14 1 . 23 Level 5 15 | . . . . . 1 . . . . . . . . . 84 59 100 85 . . 15 High Security 3 | . . . . . . . . . . . . . . . . 40 . . . . 23 Max Security . | . . . . . . . . . . . . . . . . . . . . . . Squads Dispatched 94 | . 11 . 7 3 . . 4 . 1 . . 1 . 18 . 19 . . 1 . 29 Investigation 17 | . 9 . 4 1 . . 1 . . . . . . 2 . . . . . . . Extermination 12 | . . . . . . . 2 . . . . 1 . 5 . . . . 1 . 3 Reinforcement 22 | . 2 . 3 1 . . 1 . . . . . . 9 . 2 . . . . 4 Assault 37 | . . . . . . . . . 1 . . . . 2 . 17 . . . . 17 Garrison 6 | . . . . 1 . . . . . . . . . . . . . . . . 5 Intercept . | . . . . . . . . . . . . . . . . . . . . . . Searches Triggered . | . . . . . . . . . . . . . . . . . . . . . . Data Miner Redirects 5 | . . . . . . . . . . . . . . 3 . 1 . . . . 1 Construction Impeded 5 | . . . . . . . 1 . . . . . . 2 . 2 . . . . . Haulers Reinforced 3 | . . . . . . . . . . . . . . . . . . . . . 3 Active Scanning Responses . | . . . . . . . . . . . . . . . . . . . . . . Cargo Convoy Interrupts . | . . . . . . . . . . . . . . . . . . . . . . Stealth | -11 -10 -10 -9 -9 -9 -9 -7 -7 -7 -7 -6 -6 -6 -6 -6 -6 -6 -6 -5 -5 -5 --------- Run | Jun Mat Min Mat Sto Gar Rec Fac Low Low Dat Pro Fac Gar Fac Gar Ext Cet Arc Fac Was Fac Distress Signals 21 | . 4 . 3 2 . . 1 . . . . . . 3 . 5 2 . . . 1 Communications Jammed . | . . . . . . . . . . . . . . . . . . . . . . Distress Signals . | . . . . . . . . . . . . . . . . . . . . . . Times Spotted 678 | . 54 8 51 21 23 1 23 23 17 . 7 1 35 57 47 135 34 2 13 6 120 Peak Tracking Total 28 | . 6 4 5 5 6 . 4 9 10 . 4 1 4 5 7 28 8 1 3 2 21 Tactical Retreats 22 | . 4 2 2 1 1 . 1 . 2 . . 1 1 1 1 3 . . . . 2 Traps | -11 -10 -10 -9 -9 -9 -9 -7 -7 -7 -7 -6 -6 -6 -6 -6 -6 -6 -6 -5 -5 -5 ------- Run | Jun Mat Min Mat Sto Gar Rec Fac Low Low Dat Pro Fac Gar Fac Gar Ext Cet Arc Fac Was Fac Traps Triggered 43 | . 2 . 2 1 11 . 1 . . . . . 6 4 6 2 . . 2 . 6 Indirectly . | . . . . . . . . . . . . . . . . . . . . . . Trap Hack Attempts . | . . . . . . . . . . . . . . . . . . . . . . Triggered . | . . . . . . . . . . . . . . . . . . . . . . Disarmed . | . . . . . . . . . . . . . . . . . . . . . . Reprogrammed . | . . . . . . . . . . . . . . . . . . . . . . Reused . | . . . . . . . . . . . . . . . . . . . . . . Traps Extracted . | . . . . . . . . . . . . . . . . . . . . . . Installed . | . . . . . . . . . . . . . . . . . . . . . . Triggered 3 | . . . . . . . . . 1 . . . . . . 2 . . . . . Most Traps Carried 3 | . . . . . . . . . . . . . . . 3 1 . . . . . Machines | -11 -10 -10 -9 -9 -9 -9 -7 -7 -7 -7 -6 -6 -6 -6 -6 -6 -6 -6 -5 -5 -5 ---------- Run | Jun Mat Min Mat Sto Gar Rec Fac Low Low Dat Pro Fac Gar Fac Gar Ext Cet Arc Fac Was Fac Machines Disabled 118 | . 9 . 4 3 7 . 12 1 3 . . . 9 10 16 8 3 2 2 . 29 Max in Single Turn 7 | . 4 . 1 1 1 . 7 1 1 . . . 1 2 2 1 2 1 1 . 4 Garrison Relay 14 | . . . . . 5 . . . . . . . 4 . 5 . . . . . . Phase Generator 1 | . . . . . . . . . . . . . . . 1 . . . . . . Machines Repaired 1 | . 1 . . . . . . . . . . . . . . . . . . . . Machines Sabotaged . | . . . . . . . . . . . . . . . . . . . . . . Overloaded Fab Kills . | . . . . . . . . . . . . . . . . . . . . . . Hacking | -11 -10 -10 -9 -9 -9 -9 -7 -7 -7 -7 -6 -6 -6 -6 -6 -6 -6 -6 -5 -5 -5 --------- Run | Jun Mat Min Mat Sto Gar Rec Fac Low Low Dat Pro Fac Gar Fac Gar Ext Cet Arc Fac Was Fac Machines Accessed 55 | . 9 . 7 4 4 8 6 2 2 3 . 1 2 3 1 1 1 . 1 . . Terminals 34 | . 6 . 5 3 4 3 6 . . . . . 2 2 1 1 1 . . . . Fabricators . | . . . . . . . . . . . . . . . . . . . . . . Repair Stations 2 | . 1 . . . . . . . . . . . . . . . . . 1 . . Recycling Units 9 | . 2 . 2 . . 5 . . . . . . . . . . . . . . . Scanalyzers . | . . . . . . . . . . . . . . . . . . . . . . Garrison Access 3 | . . . . 1 . . . . . . . 1 . 1 . . . . . . . Total Hacks 143 | . 29 . 18 10 6 21 13 2 5 23 . 1 3 5 2 2 2 . 1 . . Successful 84 | . 20 . 9 4 4 8 4 2 5 23 . 1 . 2 1 1 . . . . . Failed 59 | . 9 . 9 6 2 13 9 . . . . . 3 3 1 1 2 . 1 . . Catastrophic 17 | . . . 2 2 . 4 5 . . . . . 1 1 . . 2 . . . . Database Lockouts . | . . . . . . . . . . . . . . . . . . . . . . Manual 50 | . 18 . 15 3 . 5 5 . . . . . . 3 . . 1 . . . . Terminals 81 | . 21 . 15 7 6 7 13 . . . . . 3 3 2 2 2 . . . . Fabricators . | . . . . . . . . . . . . . . . . . . . . . . Repair Stations 6 | . 5 . . . . . . . . . . . . . . . . . 1 . . Recycling Units 20 | . 3 . 3 . . 14 . . . . . . . . . . . . . . . Scanalyzers . | . . . . . . . . . . . . . . . . . . . . . . Garrison Access 6 | . . . . 3 . . . . . . . 1 . 2 . . . . . . . Terminal Hacks 49 | . 4 . 3 3 4 . 3 2 5 23 . . . . 1 1 . . . . . Record 11 | . . . . . . . . . 4 6 . . . . . 1 . . . . . Part Schematic 10 | . . . . . . . . . . 10 . . . . . . . . . . . Robot Schematic 4 | . . . . . . . . . . 4 . . . . . . . . . . . Prototype ID Bank 7 | . 1 . 1 1 . . 1 . . 3 . . . . . . . . . . . Open Door 4 | . . . . 1 . . . 2 1 . . . . . . . . . . . . Emergency Access Points 2 | . . . . . 1 . . . . . . . . . 1 . . . . . . Terminal Index 3 | . 1 . 1 1 . . . . . . . . . . . . . . . . . Locate Traps 1 | . 1 . . . . . . . . . . . . . . . . . . . . Hauler Manifests 2 | . 1 . . . . . 1 . . . . . . . . . . . . . . Zone Layout 2 | . . . 1 . . . 1 . . . . . . . . . . . . . . Garrison Registry 1 | . . . . . 1 . . . . . . . . . . . . . . . . Patrol Navigation 1 | . . . . . 1 . . . . . . . . . . . . . . . . Security Stations 1 | . . . . . 1 . . . . . . . . . . . . . . . . Fabricator Hacks . | . . . . . . . . . . . . . . . . . . . . . . Repair Station Hacks 5 | . 5 . . . . . . . . . . . . . . . . . . . . Scan Component 3 | . 3 . . . . . . . . . . . . . . . . . . . . Repair 2 | . 2 . . . . . . . . . . . . . . . . . . . . Recycling Unit Hacks 9 | . 1 . . . . 8 . . . . . . . . . . . . . . . Report Inventory 6 | . 1 . . . . 5 . . . . . . . . . . . . . . . Retrieve Components 3 | . . . . . . 3 . . . . . . . . . . . . . . . Scanalyzer . | . . . . . . . . . . . . . . . . . . . . . . Garrison Access Hacks 3 | . . . . 1 . . . . . . . 1 . 1 . . . . . . . Unlock Access 3 | . . . . 1 . . . . . . . 1 . 1 . . . . . . . Unauthorized Hacks 18 | . 10 . 6 . . . 1 . . . . . . 1 . . . . . . . Terminals 14 | . 8 . 4 . . . 1 . . . . . . 1 . . . . . . . Track 5 | . 2 . 2 . . . 1 . . . . . . . . . . . . . . Botnet 3 | . 1 . 1 . . . . . . . . . . 1 . . . . . . . Operators 2 | . 1 . 1 . . . . . . . . . . . . . . . . . . Sabotage 4 | . 4 . . . . . . . . . . . . . . . . . . . . Fabricators . | . . . . . . . . . . . . . . . . . . . . . . Repair Stations . | . . . . . . . . . . . . . . . . . . . . . . Recycling Units 4 | . 2 . 2 . . . . . . . . . . . . . . . . . . Tunnel 4 | . 2 . 2 . . . . . . . . . . . . . . . . . . Scanalyzers . | . . . . . . . . . . . . . . . . . . . . . . Garrison Access . | . . . . . . . . . . . . . . . . . . . . . . Data Cores Recovered 3 | . 1 . . . . . 1 . . . . . . . . . . . 1 . . Used . | . . . . . . . . . . . . . . . . . . . . . . Hacking Detections 38 | . 6 . 5 4 2 6 6 . . . . . 2 3 1 1 1 . 1 . . Full Trace Events 5 | . 1 . 2 1 . . 1 . . . . . . . . . . . . . . Feedback Events . | . . . . . . . . . . . . . . . . . . . . . . Feedback Blocked . | . . . . . . . . . . . . . . . . . . . . . . Robot Schematics Acquired 4 | . . . . . . . . . . 4 . . . . . . . . . . . Robots Built . | . . . . . . . . . . . . . . . . . . . . . . Authchips . | . . . . . . . . . . . . . . . . . . . . . . Time . | . . . . . . . . . . . . . . . . . . . . . . Total Robot Build Rating . | . . . . . . . . . . . . . . . . . . . . . . Part Schematics Acquired 10 | . . . . . . . . . . 10 . . . . . . . . . . . Parts Built . | . . . . . . . . . . . . . . . . . . . . . . Authchips . | . . . . . . . . . . . . . . . . . . . . . . Time . | . . . . . . . . . . . . . . . . . . . . . . Total Part Build Rating . | . . . . . . . . . . . . . . . . . . . . . . Parts Repaired 2 | . 2 . . . . . . . . . . . . . . . . . . . . Time 52 | . 52 . . . . . . . . . . . . . . . . . . . . Parts Recycled . | . . . . . . . . . . . . . . . . . . . . . . Recycled Matter . | . . . . . . . . . . . . . . . . . . . . . . Retrieved Matter . | . . . . . . . . . . . . . . . . . . . . . . Retrieved Components 11 | . . . . . . 11 . . . . . . . . . . . . . . . Parts Scanalyzed . | . . . . . . . . . . . . . . . . . . . . . . Part Schematics Acquired . | . . . . . . . . . . . . . . . . . . . . . . Parts Damaged . | . . . . . . . . . . . . . . . . . . . . . . Bothacking | -11 -10 -10 -9 -9 -9 -9 -7 -7 -7 -7 -6 -6 -6 -6 -6 -6 -6 -6 -5 -5 -5 ------------ Run | Jun Mat Min Mat Sto Gar Rec Fac Low Low Dat Pro Fac Gar Fac Gar Ext Cet Arc Fac Was Fac Used RIF Installer . | . . . . . . . . . . . . . . . . . . . . . . Robots Hacked . | . . . . . . . . . . . . . . . . . . . . . . Non-combat . | . . . . . . . . . . . . . . . . . . . . . . Combat . | . . . . . . . . . . . . . . . . . . . . . . Robot Hacks Applied . | . . . . . . . . . . . . . . . . . . . . . . Relay Couplers Released 24 | . . . . . 10 . . . . . . . 7 . 7 . . . . . . Machine Destruction 24 | . . . . . 10 . . . . . . . 7 . 7 . . . . . . Fabnet Peak Effective % . | . . . . . . . . . . . . . . . . . . . . . . Robots Rewired 21 | . . . . . . . . 2 6 . . . 2 . 5 6 . . . . . Allies Hacked . | . . . . . . . . . . . . . . . . . . . . . . Hacks Repelled . | . . . . . . . . . . . . . . . . . . . . . . Allies | -11 -10 -10 -9 -9 -9 -9 -7 -7 -7 -7 -6 -6 -6 -6 -6 -6 -6 -6 -5 -5 -5 -------- Run | Jun Mat Min Mat Sto Gar Rec Fac Low Low Dat Pro Fac Gar Fac Gar Ext Cet Arc Fac Was Fac Total Allies 49 | . . 1 . 10 . . . 2 6 . 1 . 3 3 8 9 5 . . 1 . Largest Group 12 | . . 1 . 10 7 . . 2 5 3 2 1 2 3 5 12 6 5 5 4 3 Highest-Rated Group 607 | . . 31 . 88 64 . . 52 150 78 96 96 170 93 262 559 607 480 475 377 274 Highest-Rated Ally 159 | . . 31 . 16 16 . . 32 32 32 96 96 96 38 99 159 152 96 96 96 96 Warlord Squad Rendezvous 5 | . . . . . . . . . . . . . . 3 . . . . . . 2 Dakka 1 | . . . . . . . . . . . . . . 1 . . . . . . . Infantry 1 | . . . . . . . . . . . . . . 1 . . . . . . . Geek 1 | . . . . . . . . . . . . . . . . . . . . . 1 Pyro 2 | . . . . . . . . . . . . . . 1 . . . . . . 1 Total Orders 2 | . . . . . . . . . . . . . . . . 2 . . . . . STAY 1 | . . . . . . . . . . . . . . . . 1 . . . . . FOLLOW 1 | . . . . . . . . . . . . . . . . 1 . . . . . Ally Attacks 647 | . . . . 33 38 . . 6 34 . 15 8 28 38 64 191 28 24 41 37 62 Total Damage 21681 | . . . . 338 397 . . 128 811 . 571 172 1401 663 3324 6184 1046 929 1425 1673 2619 Kills 149 | . . . . 8 6 . . 2 6 . 2 1 9 2 22 48 8 3 8 4 20 Allies Corrupted 3 | . . . . . . . . . . . . . 1 . 1 1 . . . . . Allies Melted 2 | . . . . . . . . . . . . . . 1 1 . . . . . . Intel | -11 -10 -10 -9 -9 -9 -9 -7 -7 -7 -7 -6 -6 -6 -6 -6 -6 -6 -6 -5 -5 -5 ------- Run | Jun Mat Min Mat Sto Gar Rec Fac Low Low Dat Pro Fac Gar Fac Gar Ext Cet Arc Fac Was Fac Robot Analysis Total . | . . . . . . . . . . . . . . . . . . . . . . Derelict Logs Recovered 7 | . . . . . . . . 3 1 . 3 . . . . . . . . . . Drone Launches . | . . . . . . . . . . . . . . . . . . . . . . Drone Recoveries . | . . . . . . . . . . . . . . . . . . . . . . Exploration | -11 -10 -10 -9 -9 -9 -9 -7 -7 -7 -7 -6 -6 -6 -6 -6 -6 -6 -6 -5 -5 -5 ------------- Run | Jun Mat Min Mat Sto Gar Rec Fac Low Low Dat Pro Fac Gar Fac Gar Ext Cet Arc Fac Was Fac Turns Passed 27228 | 13 2722 641 1711 803 1219 864 1278 1824 2544 145 2311 459 2017 2621 1547 987 738 233 665 199 1687 Spaces Moved 17767 | 10 2124 349 1504 644 907 819 1020 1369 1330 91 1118 188 1084 1723 878 492 477 155 439 99 947 Core 1 | . . . . . . . 1 . . . . . . . . . . . . . . Treads 1339 | . . . . . . 5 30 5 359 33 617 188 96 . . . . . . . 6 Legs 2 | 2 . . . . . . . . . . . . . . . . . . . . . Wheels 14990 | 8 1383 . 1159 644 907 814 989 1364 971 58 501 . 988 1723 878 492 477 155 439 99 941 Hover 1435 | . 741 349 345 . . . . . . . . . . . . . . . . . . Flight . | . . . . . . . . . . . . . . . . . . . . . . Fastest Speed 56 | 100 56 56 66 90 90 90 90 105 115 115 115 152 115 130 130 130 115 115 130 130 115 Average Speed 117 | 104 80 62 85 90 104 95 105 113 145 154 179 231 137 130 130 130 129 126 130 130 130 Slowest Speed 240 | 120 100 66 105 105 105 240 225 225 225 225 232 232 232 130 130 130 130 130 130 130 240 Overloaded Moves . | . . . . . . . . . . . . . . . . . . . . . . Propulsion Burnouts . | . . . . . . . . . . . . . . . . . . . . . . Robots Hopped . | . . . . . . . . . . . . . . . . . . . . . . Cave-ins Triggered . | . . . . . . . . . . . . . . . . . . . . . . Exploration Rate (%) 70 | 2 98 69 92 81 94 97 36 94 96 77 98 6 86 60 92 67 75 85 16 86 48 Regions Visited 21 Branch Regions 10 Pre-discovered Areas 10 | . 2 . 2 . . . . 2 1 1 2 . . . . . . . . . . Known Exits Taken 15 | . 1 1 1 1 . 1 1 1 1 1 1 1 . 1 . 1 1 1 . . . Unknown Exits Taken 1 | 1 . . . . . . . . . . . . . . . . . . . . . Scrap Searched 13 | . . 1 . . . . . 2 6 . 4 . . . . . . . . . . Spaces Dug 189 | . . . 16 . 4 . 2 8 2 . . . 50 4 54 . . . 5 . 44 Terrain Destroyed 1952 | . 10 . 20 . 16 . 59 149 81 . 52 . 142 162 282 241 149 1 30 12 546 Melee . | . . . . . . . . . . . . . . . . . . . . . . Projectile 296 | . . . . . . . 20 40 22 . 11 . 20 65 30 4 4 1 30 12 37 AOE 1656 | . 10 . 20 . 16 . 39 109 59 . 41 . 122 97 252 237 145 . . . 509 Terrain Rammed . | . . . . . . . . . . . . . . . . . . . . . . Walls Destroyed . | . . . . . . . . . . . . . . . . . . . . . . Machines Disabled . | . . . . . . . . . . . . . . . . . . . . . . Actions | -11 -10 -10 -9 -9 -9 -9 -7 -7 -7 -7 -6 -6 -6 -6 -6 -6 -6 -6 -5 -5 -5 --------- Run | Jun Mat Min Mat Sto Gar Rec Fac Low Low Dat Pro Fac Gar Fac Gar Ext Cet Arc Fac Was Fac Total 22014 | 13 2613 735 1731 766 1077 897 1159 1582 1861 95 1371 212 1396 1965 1190 755 560 187 499 139 1211 Wait 1482 | . 114 359 47 43 26 53 47 80 341 5 205 13 36 31 28 7 4 4 5 4 30 Move 17747 | 9 2123 348 1503 643 906 818 1019 1368 1329 90 1117 188 1081 1723 877 491 476 154 439 98 947 Hop . | . . . . . . . . . . . . . . . . . . . . . . Pick Up 58 | . 9 . 4 1 . 2 3 6 1 . 1 4 . 4 5 1 . 5 4 2 6 Fast Attach 94 | 1 9 1 14 1 . 5 9 8 18 . 2 . 4 3 2 3 3 2 1 1 7 Attach 20 | . 2 . 1 . . 1 . 2 4 . . 1 1 . 1 . 1 . 3 . 3 Detach 10 | . 1 . . . . . 1 2 4 . . . . . . . . 1 . . 1 Swap 93 | 1 8 1 9 4 7 1 7 3 2 . . 3 4 10 1 2 . . 10 . 20 Drop 136 | 2 12 2 15 3 . 9 12 15 20 . 1 3 4 9 4 1 6 2 4 3 9 Fire 1281 | . 291 21 104 50 48 4 37 47 29 . 19 . 101 112 101 99 43 6 21 20 128 Melee . | . . . . . . . . . . . . . . . . . . . . . . Ram 1 | . . . . . . . . . . . . . . . . . . . . . 1 Kick . | . . . . . . . . . . . . . . . . . . . . . . Crush 105 | . . . . . . . 1 5 30 . 18 . 51 . . . . . . . . Escape Stasis 232 | . . . . . 80 . . . . . . . 48 16 40 24 . . . . 24 Rewire 321 | . . . . . . . . 38 51 . . . 23 . 92 116 . . . . 1 Trap . | . . . . . . . . . . . . . . . . . . . . . . Miscellaneous 434 | . 44 3 34 21 10 4 23 8 32 . 8 . 43 57 39 11 27 13 12 11 34 Route ------- -11/Junkyard -10/Materials (discovered 5 exits: *Mat x3 / *Min x2) -10/Mines -9/Materials (discovered 6 exits: *Mat x3 / *Min x2 / *Sto) -9/Storage (discovered 3 exits: *Mat / Rec / Gar) -9/Garrison (discovered 3 exits: *Rec x3) -9/Recycling -7/Factory (discovered 3 exits: *Fac x2 / *Low) -7/Lower Caves -7/Lower Caves (discovered 2 exits: *Fac / *Dat) -7/Data Miner -6/Proximity Caves -6/Factory (discovered 3 exits: *Low / Ext / Gar) -6/Garrison (discovered 3 exits: *Fac x3) -6/Factory (discovered 6 exits: *Fac x3 / *Low / *Ext / Gar) -6/Garrison (discovered 3 exits: *Ext x3) -6/Extension (discovered 2 exits: *Fac / *Cet) -6/Cetus (discovered 3 exits: *Fac x2 / *Arc) -6/Archives (discovered 3 exits: *Fac / *Hub x2) -5/Factory (discovered 2 exits: *Fac / [*Upp]) -5/Waste -5/Factory (discovered 3 exits: *Fac x3) History --------- Turn | Location | Event 1 | -11/Junkyard | Discovered new exit (range 1) 14 | -11/Junkyard | Entered Materials 139 | -10/Materials | Upgraded with Weapon slot (x1) 309 | -10/Materials | Discovered new exit (range 4) 336 | -10/Materials | Build established: Mutant 412 | -10/Materials | Discovered new exit (range 18) 506 | -10/Materials | Core integrity fell below 50% 509 | -10/Materials | Discovered new exit (range 13) 525 | -10/Materials | Reached level 2 530 | -10/Materials | Upgraded with Propulsion slot (x1) 530 | -10/Materials | Upgraded with Utility slot (x2) 642 | -10/Materials | Discovered new exit (range 14) 713 | -10/Materials | Discovered new exit (range 17) 774 | -10/Materials | Identified exit to Materials 884 | -10/Materials | Identified exit to Mines 1325 | -10/Materials | Reached level 3 1727 | -10/Materials | Repaired Lgt. Armor Plating 1754 | -10/Materials | Repaired Lgt. Armor Plating 1849 | -10/Materials | Reached level 4 2399 | -10/Materials | Build established: Scavenger-Scout 2736 | -10/Materials | Entered Mines 2737 | -10/Mines | Assembled infested the area 2738 | -10/Mines | Reached level 5 3320 | -10/Mines | Received a Mining Laser from a helpful Derelict 3336 | -10/Mines | Discovered exit to Materials (range 8) 3377 | -10/Mines | Entered Materials 3379 | -9/Materials | Reached level 6 3548 | -9/Materials | Discovered new exit (range 5) 3569 | -9/Materials | Identified exit to Materials 3678 | -9/Materials | Reached level 7 3866 | -9/Materials | Upgraded with Propulsion slot (x1) 3866 | -9/Materials | Upgraded with Utility slot (x1) 4091 | -9/Materials | Build established: Skirmisher 4135 | -9/Materials | Discovered exit to Materials (range 4) 4145 | -9/Materials | Reached level 8 4415 | -9/Materials | Discovered new exit (range 12) 4550 | -9/Materials | Discovered exit to Materials (range 11) 4677 | -9/Materials | Reached level 9 4843 | -9/Materials | Upgraded with Utility slot (x1) 4968 | -9/Materials | Discovered new exit (range 17) 4981 | -9/Materials | Identified exit to Mines 5064 | -9/Materials | Discovered new exit (range 17) 5086 | -9/Materials | Identified exit to Storage 5088 | -9/Materials | Entered Storage 5447 | -9/Storage | Reached level 10 5485 | -9/Storage | Assisted by bots powering up and referring to "LRC-V3" 5531 | -9/Storage | Discovered exit to Materials (range 18) 5648 | -9/Storage | Discovered new exit (range 15) 5673 | -9/Storage | Upgraded with Weapon slot (x1) 5789 | -9/Storage | Build established: Commander-Skirmisher 5876 | -9/Storage | Identified exit to Garrison 5891 | -9/Storage | Entered Garrison 5891 | -9/Garrison | Accompanied by 7 allies 5920 | -9/Garrison | Triggered checkpoint 5955 | -9/Garrison | Garrison Relay disabled 6018 | -9/Garrison | Triggered checkpoint 6021 | -9/Garrison | Reached level 11 6026 | -9/Garrison | Triggered checkpoint 6030 | -9/Garrison | Triggered checkpoint 6070 | -9/Garrison | Destroyed 9 combat bots 6125 | -9/Garrison | Discovered new exit (range 10) 6139 | -9/Garrison | Learned Recycling security intel 6139 | -9/Garrison | Upgraded with Power slot (x1) 6327 | -9/Garrison | Garrison Relay disabled 6355 | -9/Garrison | Discovered new exit (range 11) 6364 | -9/Garrison | Identified exit to Recycling 6367 | -9/Garrison | Build established: Gunner 6389 | -9/Garrison | Triggered checkpoint 6413 | -9/Garrison | Garrison Relay disabled 6540 | -9/Garrison | Triggered checkpoint 6613 | -9/Garrison | Garrison Relay disabled 6750 | -9/Garrison | Garrison Relay disabled 6781 | -9/Garrison | Discovered exit to Recycling (range 13) 6790 | -9/Garrison | Discovered exit to Recycling (range 82) 6790 | -9/Garrison | Discovered exit to Recycling (range 59) 6790 | -9/Garrison | Discovered exit to Recycling (range 12) 7068 | -9/Garrison | Triggered checkpoint 7110 | -9/Garrison | Entered Recycling 7167 | -9/Recycling | Found Scrap Engine 7506 | -9/Recycling | Build established: Skirmisher 7920 | -9/Recycling | Discovered new exit (range 18) 7973 | -9/Recycling | Identified exit to Factory 7974 | -9/Recycling | Entered Factory 7976 | -7/Factory | Reached level 12 8214 | -7/Factory | Discovered new exit (range 17) 8231 | -7/Factory | Identified exit to Factory 8377 | -7/Factory | Reached level 13 8416 | -7/Factory | Upgraded with Utility slot (x1) 8949 | -7/Factory | Reached level 14 8986 | -7/Factory | Discovered exit to Factory (range 9) 9236 | -7/Factory | Discovered new exit (range 15) 9251 | -7/Factory | Identified exit to Lower Caves 9252 | -7/Factory | Entered Lower Caves 9258 | -7/Lower Caves | Met a Warlord Commander 9259 | -7/Lower Caves | Learned location of Warlord (-5) 9265 | -7/Lower Caves | Found Encrypted Comm Array 9337 | -7/Lower Caves | Learned location of Zion (-6) 9496 | -7/Lower Caves | Reached level 15 9618 | -7/Lower Caves | Attracted the attention of an 0b10 outpost 9653 | -7/Lower Caves | Destroyed 9 combat bots 9958 | -7/Lower Caves | Learned Factory stockpile data 10134 | -7/Lower Caves | Attracted the attention of an 0b10 checkpoint 10137 | -7/Lower Caves | Reached level 16 10190 | -7/Lower Caves | Found Prototype Device 10226 | -7/Lower Caves | Identified Heart of Steel 10584 | -7/Lower Caves | Discovered new exit (range 13) 10598 | -7/Lower Caves | Identified exit to Lower Caves 11076 | -7/Lower Caves | Entered another Lower Caves area 11076 | -7/Lower Caves | Accompanied by 1 ally 11100 | -7/Lower Caves | Attacked by a delusional Derelict stockpiling Unaware 11200 | -7/Lower Caves | Discovered exit to Factory (range 8) 11225 | -7/Lower Caves | Encountered a Warlord checkpoint 11452 | -7/Lower Caves | Build established: Commander-Skirmisher 11531 | -7/Lower Caves | Learned Extension garrison access intel 11869 | -7/Lower Caves | Attracted the attention of an 0b10 outpost 11980 | -7/Lower Caves | Attracted the attention of an 0b10 checkpoint 12186 | -7/Lower Caves | Build established: Skirmisher 12624 | -7/Lower Caves | Discovered new exit (range 13) 13617 | -7/Lower Caves | Identified exit to Data Miner 13620 | -7/Lower Caves | Entered Data Miner 13620 | -7/Data Miner | Accompanied by 3 allies 13620 | -7/Data Miner | Discovered new exit (range 6) 13659 | -7/Data Miner | Met Data Miner 13713 | -7/Data Miner | Learned location of Section 7 (-2) 13713 | -7/Data Miner | Acquired the access code to Warlord's prototype stash 13731 | -7/Data Miner | Received God Mode back door access code from Data Miner 13760 | -7/Data Miner | Identified exit to Proximity Caves 13765 | -7/Data Miner | Entered Proximity Caves 13765 | -6/Proximity Caves | Accompanied by 3 allies 13767 | -6/Proximity Caves | Reached level 17 13865 | -6/Proximity Caves | Escorted by Enhanced Grunt 14137 | -6/Proximity Caves | Upgraded with Propulsion slot (x1) 14223 | -6/Proximity Caves | Spotted B-75 Beast 14234 | -6/Proximity Caves | Destroyed B-75 Beast 14291 | -6/Proximity Caves | Learned Factory garrison access intel 14442 | -6/Proximity Caves | Reached level 18 14947 | -6/Proximity Caves | Discovered exit to Factory (range 10) 15088 | -6/Proximity Caves | Received a Behemoth hack from an annoying Tinkerer 15337 | -6/Proximity Caves | Build established: Gunner 16076 | -6/Proximity Caves | Entered Factory 16076 | -6/Factory | Accompanied by 1 ally 16077 | -6/Factory | Identified exit to Extension 16079 | -6/Factory | Loaded intel: 4 garrison access locations 16144 | -6/Factory | Found Hvy. Insulated Plating 16381 | -6/Factory | Discovered new exit (range 7) 16419 | -6/Factory | Identified exit to Lower Caves 16426 | -6/Factory | Build established: Derelict-Gunner 16535 | -6/Factory | Identified exit to Garrison 16535 | -6/Factory | Entered Garrison 16535 | -6/Garrison | Accompanied by 1 ally 16610 | -6/Garrison | Reached level 19 16728 | -6/Garrison | Found Prototype Device 16728 | -6/Garrison | Identified Exp. Thermal Shield 16768 | -6/Garrison | Triggered checkpoint 16791 | -6/Garrison | Garrison Relay disabled 16856 | -6/Garrison | Triggered checkpoint 16924 | -6/Garrison | Spotted B-86 Titan 16928 | -6/Garrison | Spotted B-90 Cyclops 16957 | -6/Garrison | Destroyed B-86 Titan 16980 | -6/Garrison | Destroyed B-90 Cyclops 17044 | -6/Garrison | Rewired B-75 Beast 17061 | -6/Garrison | Rewired B-75 Beast 17245 | -6/Garrison | Discovered new exit (range 10) 17257 | -6/Garrison | Identified exit to Factory 17302 | -6/Garrison | Triggered checkpoint 17360 | -6/Garrison | Garrison Relay disabled 17410 | -6/Garrison | Destroyed Beast 5a 17436 | -6/Garrison | Triggered checkpoint 17501 | -6/Garrison | Build established: Skirmisher 17522 | -6/Garrison | Triggered checkpoint 17571 | -6/Garrison | Garrison Relay disabled 17629 | -6/Garrison | Discovered exit to Factory (range 11) 17677 | -6/Garrison | Triggered checkpoint 17706 | -6/Garrison | Triggered checkpoint 17760 | -6/Garrison | Triggered checkpoint 17812 | -6/Garrison | Triggered checkpoint 17819 | -6/Garrison | Reached level 20 17834 | -6/Garrison | Upgraded with Utility slot (x1) 17845 | -6/Garrison | Discovered exit to Factory (range 13) 17966 | -6/Garrison | Garrison Relay disabled 18155 | -6/Garrison | Attempted to access garrison exit controls, blocked by remote lockdown 18321 | -6/Garrison | Attempted to access garrison exit controls, blocked by remote lockdown 18522 | -6/Garrison | Rescued a captive Derelict 18552 | -6/Garrison | Entered Factory 18552 | -6/Factory | Accompanied by 1 ally 18671 | -6/Factory | Joined by Warlord Pyro squad 18672 | -6/Factory | Joined by Warlord Dakka squad 18693 | -6/Factory | Discovered new exit (range 12) 18705 | -6/Factory | Spotted B-75 Beast 18720 | -6/Factory | Identified exit to Factory 18917 | -6/Factory | Discovered exit to Lower Caves (range 18) 19252 | -6/Factory | First assault squad dispatched 19274 | -6/Factory | Incoming assault squad redirected 19536 | -6/Factory | Discovered exit to Factory (range 18) 19646 | -6/Factory | Joined by Warlord Infantry squad 19920 | -6/Factory | Incoming investigation squad redirected 20042 | -6/Factory | Allied Derelicts emerged from ambush trap array 20073 | -6/Factory | Discovered exit to Extension (range 14) 20240 | -6/Factory | Found Hvy. Reflective Plating 20521 | -6/Factory | Discovered exit to Factory (range 9) 21022 | -6/Factory | Incoming assault squad redirected 21105 | -6/Factory | Reached level 21 21173 | -6/Factory | Identified exit to Garrison 21173 | -6/Factory | Entered Garrison 21211 | -6/Garrison | Triggered checkpoint 21259 | -6/Garrison | Garrison Relay disabled 21386 | -6/Garrison | Triggered checkpoint 21391 | -6/Garrison | Heart of Steel transformed into Warbot 21394 | -6/Garrison | Triggered checkpoint 21403 | -6/Garrison | Triggered checkpoint 21430 | -6/Garrison | Destroyed 11 combat bots 21498 | -6/Garrison | Triggered checkpoint 21540 | -6/Garrison | Garrison Relay disabled 21586 | -6/Garrison | Discovered exit to Extension (range 9) 21710 | -6/Garrison | Triggered checkpoint 21838 | -6/Garrison | Triggered checkpoint 21873 | -6/Garrison | Garrison Relay disabled 21918 | -6/Garrison | Discovered exit to Extension (range 13) 21983 | -6/Garrison | Phase Generator disabled 22173 | -6/Garrison | Rescued a captive Derelict 22174 | -6/Garrison | Rescued a captive Derelict 22193 | -6/Garrison | Discovered exit to Extension (range 11) 22214 | -6/Garrison | Triggered checkpoint 22248 | -6/Garrison | Triggered checkpoint 22325 | -6/Garrison | Garrison Relay disabled 22376 | -6/Garrison | Spotted B-86 Titan 22396 | -6/Garrison | Triggered checkpoint 22401 | -6/Garrison | Destroyed B-86 Titan 22426 | -6/Garrison | Spotted B-75 Beast 22450 | -6/Garrison | Allies destroyed B-75 Beast 22458 | -6/Garrison | Rewired B-75 Beast 22607 | -6/Garrison | Spotted B-75 Beast 22632 | -6/Garrison | Allies destroyed B-75 Beast 22632 | -6/Garrison | Reached level 22 22720 | -6/Garrison | Entered Extension 22720 | -6/Extension | Accompanied by 3 allies 22783 | -6/Extension | Rescued A7 22813 | -6/Extension | Rescued a captive Derelict 22814 | -6/Extension | Rescued a captive Derelict 23070 | -6/Extension | First assault squad dispatched 23093 | -6/Extension | Incoming assault squad redirected 23196 | -6/Extension | Build established: Commander-Skirmisher 23308 | -6/Extension | High security lockdown imminent 23357 | -6/Extension | Spotted B-75 Beast 23379 | -6/Extension | Destroyed B-75 Beast 23388 | -6/Extension | High security lockdown engaged 23409 | -6/Extension | Spotted B-75 Beast 23414 | -6/Extension | Destroyed B-75 Beast 23495 | -6/Extension | Disrupted transfer network 23523 | -6/Extension | Destroyed 24 combat bots 23559 | -6/Extension | Reached level 23 23596 | -6/Extension | Destroyed 14 combat bots 23634 | -6/Extension | Discovered new exit (range 19) 23635 | -6/Extension | Discovered exit to Factory (range 18) 23645 | -6/Extension | Disrupted transfer network 23694 | -6/Extension | Core integrity fell below 50% 23705 | -6/Extension | Identified exit to Cetus 23707 | -6/Extension | Destroyed 33 combat bots 23707 | -6/Extension | Entered Cetus 23707 | -6/Cetus | Accompanied by 2 allies (A7) 23712 | -6/Cetus | Acquired a Cetus Manufacturing Module code from A7 23744 | -6/Cetus | Spotted Cetus Guard 23744 | -6/Cetus | Spotted Cetus Guard 23751 | -6/Cetus | Spotted Cetus Guard 23752 | -6/Cetus | Spotted Cetus Guard 23758 | -6/Cetus | Allies destroyed Cetus Guard 23767 | -6/Cetus | Destroyed Cetus Guard 23772 | -6/Cetus | Allies destroyed Cetus Guard 23773 | -6/Cetus | Destroyed Cetus Guard 23830 | -6/Cetus | Destroyed 8 combat bots 23837 | -6/Cetus | Started Cetus Manufacturing Module 23855 | -6/Cetus | Discovered new exit (range 18) 23862 | -6/Cetus | Manufactured an Enhanced Grunt 23882 | -6/Cetus | Spotted Cetus Guard 23882 | -6/Cetus | Spotted Cetus Guard 23882 | -6/Cetus | Spotted Cetus Guard 23882 | -6/Cetus | Spotted Cetus Guard 23887 | -6/Cetus | Manufactured an Enhanced Grunt 23892 | -6/Cetus | Destroyed Cetus Guard 23901 | -6/Cetus | Destroyed Cetus Guard 23902 | -6/Cetus | Allies destroyed Cetus Guard 23904 | -6/Cetus | Allies destroyed Cetus Guard 23912 | -6/Cetus | Manufactured an Enhanced Grunt 23937 | -6/Cetus | Manufactured an Enhanced Grunt 23962 | -6/Cetus | Manufactured an Enhanced Grunt 23996 | -6/Cetus | System corruption reached 10% 24028 | -6/Cetus | Discovered exit to Factory (range 19) 24173 | -6/Cetus | Identified exit to Archives 24198 | -6/Cetus | Destroyed A7 24209 | -6/Cetus | Extracted ID and sensor layout for unrecognized location from A7's data core 24219 | -6/Cetus | Found Corrupted Prototype Protection 24219 | -6/Cetus | Identified Med. Regenerative Plating 24233 | -6/Cetus | Discovered exit to Factory (range 18) 24245 | -6/Cetus | Met Revision 17 24445 | -6/Cetus | Entered Archives 24445 | -6/Archives | Accompanied by 5 allies 24491 | -6/Archives | Discovered new exit (range 19) 24565 | -6/Archives | Identified exit to Hub_04(d) 24584 | -6/Archives | Discovered exit to Hub_04(d) (range 19) 24603 | -6/Archives | Discovered exit to Factory (range 19) 24628 | -6/Archives | Unable to access archive contents 24678 | -6/Archives | Entered Factory 24678 | -5/Factory | Accompanied by 5 allies 24848 | -5/Factory | Discovered new exit (range 15) 24887 | -5/Factory | Reached level 24 24894 | -5/Factory | Upgraded with Weapon slot (x1) 24974 | -5/Factory | Found Imp. Powered Armor 25023 | -5/Factory | Discovered new exit (range 16) 25079 | -5/Factory | Found Corrupted Exp. Thermal Shield 25124 | -5/Factory | Identified exit to Factory 25308 | -5/Factory | Build established: Scavenger-Gunner 25343 | -5/Factory | Sucked down chute 25343 | -5/Factory | Entered Waste 25343 | -5/Waste | Met up with 1 ally sucked down the chute earlier 25349 | -5/Waste | Found Broken Adv. Powered Armor 25358 | -5/Waste | EMP discharged 25366 | -5/Waste | Spotted C-40 Crusher 25368 | -5/Waste | Destroyed C-40 Crusher 25371 | -5/Waste | Allies destroyed C-40 Crusher 25379 | -5/Waste | Spotted C-40 Crusher 25390 | -5/Waste | 3 allies followed down the chute 25401 | -5/Waste | Spotted C-40 Crusher 25407 | -5/Waste | Allies destroyed C-40 Crusher 25416 | -5/Waste | Allies destroyed C-40 Crusher 25433 | -5/Waste | Spotted C-40 Crusher 25443 | -5/Waste | Allies destroyed C-40 Crusher 25458 | -5/Waste | EMP discharged 25458 | -5/Waste | System corruption reached 10% 25475 | -5/Waste | Spotted C-40 Crusher 25487 | -5/Waste | Destroyed C-40 Crusher 25522 | -5/Waste | Discovered new exit (range 12) 25537 | -5/Waste | Identified exit to Factory 25542 | -5/Waste | Entered Factory 25542 | -5/Factory | Accompanied by 3 allies 25619 | -5/Factory | Joined by Warlord Pyro squad 25774 | -5/Factory | Discovered exit to Factory (range 18) 25842 | -5/Factory | First assault squad dispatched 25860 | -5/Factory | Incoming assault squad redirected 25920 | -5/Factory | Build established: Gunner 26137 | -5/Factory | Destroyed 11 combat bots 26250 | -5/Factory | Joined by Warlord Geek squad 26351 | -5/Factory | Discovered exit to Factory (range 18) 26464 | -5/Factory | Garrison activated, responded to threat 26508 | -5/Factory | Reached level 25 26634 | -5/Factory | Discovered exit to Factory (range 12) 26830 | -5/Factory | High security lockdown imminent 26910 | -5/Factory | High security lockdown engaged 27054 | -5/Factory | Destroyed 10 combat bots 27132 | -5/Factory | Destroyed 12 combat bots 27186 | -5/Factory | Destroyed 11 combat bots 27207 | -5/Factory | Core integrity fell below 50% 27219 | -5/Factory | Core integrity fell below 20% 27229 | -5/Factory | Destroyed by Y-64 Sentinel with KE Penetrator Last Messages --------------- 27219_ The unstable cave ceiling collapses. 27221_ Acquired 10 matter. 27221_ Penetrated by Slug. 27221_ G-50 Soldier destroyed. 27222_ Acquired 29 matter. 27222_ The unstable cave ceiling collapses. 27222_ Penetrated by Slug. 27223_ Ended siege mode. 27223_ The unstable cave ceiling collapses. 27224_ Penetrated by Slug. 27225_ Acquired 24 matter. 27225_ Acquired 5 matter. 27226_ The unstable cave ceiling collapses. 27226_ Penetrated by Slug. 27229_ The unstable cave ceiling collapses. 27229_ Penetrated by Slug. [Achievement: 50k Club] [Achievement: Tester] [Achievement: Punisher] [Achievement: Rambo] Map ----- +----------------------------------------------------+ | #??????# ? ? ?#####??????????????????????????? | | #???"??# ? ?#########????????????????????????? | | #?"?"?## ? ?######?##????????????????????????? | | + " " ###############?##?###?????????????????????? | | # " " ###? # #?########?####????????????????????? | | # " ? #?## ###################???????????????????? | | #?" " #### ## #########???????????????????? | | # " "??### ## """ #########???????????????????? | | + "?" #?## ## " " ############????????????????? | | #?" " #??# ## ############????????????????? | | # #### # ##############??????????????? | | #? ! #### ## ##############?????????????? | | ####[##### ############??#?????????? | | ####%##### ## ############???????????? | | + /!= # ###########??????????? | | # !!= " ###########??????????? | | # ! " # o ] ############?????????? | | + ! = T" # ############?????????? | | # [ " # ############????????? | | # " # #### # #####???????? | | # = ??????? | | #######"# # ] ??????? | | # # # # = # C??????? | | "" # % [ ??????? | | ## =[ = Y # ??????? | | % g= %@ Y ?????? | | [ "??????? | | ## = g ""??????? | | # ! ## # ??????? | | ## =%! %!# # % # ??????? | | ! [/ # # ??????? | | # ! % ???????? | | ! " / ##???????? | | " [ ## #% # # #????????? | | "" "" % # %[% #### ?#???????? | | "" ## # # g ## ?????????? | | "" ## ## ?????????? | | # # ## # ??????????? | | # # # """ ?????????? | | # #### # """ # #### ???##?????? | | ###### # """ ## ###+##??#????? | | * # ### # ? ? ? ??? | | ! * = # ### # ?? ? ? ??? | | = ! = ########## ? # ? ? ??? | | # # ########## """" ? # ""? """ ? ? | | # ########## """" ?? """ ?"" ? ? | | """ ## ########### """" ? # """ ?"" | | """ ## ########### """" ?# | | """ ## ########### """" ? # """ ""? """ | | ## ^ ^########### """" # """ """ """ | +----------------------------------------------------+ Best States ------------- Heat Dissipation 97 Energy Generation 37 Energy Capacity 550 Matter Stores 500 Matter Capacity 500 Sight Range 19 Robot Scan Range 22 Terrain Scan Range 20 Terrain Scan Density 510 Armor Coverage 825 Resistance: KI 30 Resistance: TH 30 Resistance: EX 25 Weapon Cycling 20 Melee Speed Boost 20 Evasion (%) 53 Target Analysis 5 Recoil Reduction 6 Matter Filtering 30 Kinecelleration 40 Salvage Targeting 4 Offensive Hacking 11 Item Schematics ----------------- Combat Drone Bay | -7/Data Miner | Free Lgt. Regenerative Plating | -7/Data Miner | Free Cld. Cesium-ion Thruster | -7/Data Miner | Free Thermal Defense Suite | -7/Data Miner | Free Antimatter Cannon | -7/Data Miner | Free Linear Gravjet | -7/Data Miner | Free Imp. Kinecellerator | -7/Data Miner | Free Adv. Plasma Cannon | -7/Data Miner | Free Nuclear Pulse Thruster | -7/Data Miner | Free Imp. Coolant Injector | -7/Data Miner | Free Robot Schematics ------------------ H-66 Slayer | -7/Data Miner | Free B-48 Gladiator | -7/Data Miner | Free R-10 Processor | -7/Data Miner | Free S-27 Virus | -7/Data Miner | Free Fabricated ------------ Nothing Alien Tech Used ----------------- None Achievements -------------- 50k Club Killing Spree Project G-00 Punisher Rambo Revising The Future Tester Challenges ------------ None RPGLIKE | -11 -10 -10 -9 -9 -9 -9 -7 -7 -7 -7 -6 -6 -6 -6 -6 -6 -6 -6 -5 -5 -5 --------- Run | Jun Mat Min Mat Sto Gar Rec Fac Low Low Dat Pro Fac Gar Fac Gar Ext Cet Arc Fac Was Fac Levels Raised 24 | . 3 1 4 1 1 . 3 2 . . 2 . 2 1 1 1 . . 1 . 1 XP Earned 40134 | 3000 5697 500 6304 1978 1386 310 4422 1912 1017 220 2049 839 2010 1431 1458 1906 397 108 978 36 2176 XP Spent 38720 | 400 7075 1500 5815 1600 1550 . 4435 2775 . . 1700 1500 3050 . . 2250 1500 . 2100 150 1320 Upgrades 92 | 2 36 5 11 2 3 . 8 4 . . 2 1 3 . . 4 2 . 2 1 6 Power Slot 1 | . . . . . 1 . . . . . . . . . . . . . . . . Propulsion Slot 3 | . 1 . 1 . . . . . . . 1 . . . . . . . . . . Utility Slot 6 | . 2 . 2 . . . 1 . . . . . 1 . . . . . . . . Weapon Slot 3 | . 1 . . 1 . . . . . . . . . . . . . . 1 . . Core Integrity 11 | . 11 . . . . . . . . . . . . . . . . . . . . Heat Dissipation 12 | . 5 . . . . . . . . . . . . . . . . . . 1 6 Matter Storage 4 | . 2 . . . . . . 2 . . . . . . . . . . . . . Mass Support 2 | . 2 . . . . . . . . . . . . . . . . . . . . Inventory Capacity 6 | . 2 . 1 . . . . 2 . . . 1 . . . . . . . . . Sight Range 3 | 2 . . . . . . . . . . . . 1 . . . . . . . . Sensor Range 11 | . 7 . 2 . . . 2 . . . . . . . . . . . . . . Terrain Scan Density 5 | . . . 2 . . . 3 . . . . . . . . . . . . . . Ranged Accuracy 7 | . 1 1 1 . 1 . . . . . . . . . . 2 . . 1 . . KI Resistance % 4 | . . 1 . . 1 . . . . . . . 1 . . . 1 . . . . TH Resistance % 4 | . 1 . 1 . . . 1 . . . . . . . . . 1 . . . . EX Resistance % 4 | . . 2 . . . . . . . . . . . . . 2 . . . . . KI Damage % 4 | . 1 1 . 1 . . 1 . . . . . . . . . . . . . . EX Damage % 2 | . . . 1 . . . . . . . 1 . . . . . . . . . . Protomatter Created 4365 | . 331 13 277 156 114 100 178 96 216 . 94 . 239 571 199 626 17 . 43 85 1010 Integrity Restored 8625 | . 900 37 656 442 147 71 486 121 642 . 165 . 846 1016 762 226 558 282 254 242 772 Core 6164 | . 851 34 403 294 95 35 300 84 381 . 165 . 431 748 483 118 558 282 250 . 652 Parts 2461 | . 49 3 253 148 52 36 186 37 261 . . . 415 268 279 108 . . 4 242 120 Protomatter Decayed 2959 | . 12 176 53 75 212 75 2 14 137 . 39 . 138 497 150 737 8 . . . 634 Game ------ Seed LightVisualInitializer Manual? 0 Play Time 05:06:29 Cumulative 80.6 hours Start 2023.03.11 @ 11:19:03 End 2023.03.12 @ 08:56:05 Sessions 5 Manual Loads 0 Difficulty Rogue Special Mode Winter2019/RPGLIKE Game No. 57 Rogue 57 Adventurer 0 Explorer 0 Win Type - Total 1 Types 1/0/0/0/0/0/0/0/0 Lore% 37 Gallery% 50 Achievement% 46 Wizard Run 0 Options --------- ASCII 0 Keyboard 0 Movement Numpad Keybinds 0 Fullscreen 1 Font 12/Smallcaps Map View 83x54 Tactical HUD 1 Map Filters NONE Filters NONE Steam 1 RUN: d0728c29-4e59-4165-b4d4-cf4abb43945c